[Event "DVM U14 2021"]
[Site "Willingen"]
[Date "2022.08.15"]
[Round "5"]
[White "Schwartz, Oliver"]
[Black "Reus, Nicholas"]
[Result "1-0"]
[ECO "D31"]
[WhiteElo "1872"]
[BlackElo "1663"]
[Annotator "NA RC"]
[PlyCount "63"]
[EventDate "2022.08.12"]
[EventType "team-tourn"]
[EventRounds "7"]
[EventCountry "GER"]
[SourceTitle "playchess.com"]
[Source "ChessBase"]
[SourceQuality "1"]
[TimeControl "40/5400+30:1800+30"]

{[%evp 20,53,220,202,335,28,32767,38,52,8,32767,32767,32767,182,165,118,186,202,350,325,445,32767,32767,764,830,445,438,384,32767,386,32767,365,457,450,32767,551]} 1. d4 {[%emt 0:00:05]} d5 {[%emt 0:00:00]} 2. c4 {[%emt 0:00:06]} e6 {[%emt 0:00:00]} 3. Nc3 {[%emt 0:00:14]} c6 {[%emt 0:01:30]} 4. e4 {[%emt 0:00:08]} dxe4 {[%emt 0:00:07]} 5. Nxe4 {[%emt 0:00:11]} Bb4+ {[%emt 0:00:54]} 6. Bd2 {[%emt 0:00:18]} Qxd4 {[%emt 0:00:06]} 7. Bxb4 {[%emt 0:00:06]} Qxe4+ {[%emt 0:02:06]} 8. Ne2 {[%emt 0:00:49]} Nd7 {[%emt 0:07:15]} 9. Qd6 {[%emt 0:02:22]} Qe5 {[%emt 0:03:39] now scores much better than the old 9...a5.} 10. Qd2 {[%emt 0:08:47] [#]} Ndf6 $2 $146 {[%emt 0:08:25]} ({Predecessor:} 10... Ngf6 $1 $11 {and Black is okay.} 11. O-O-O c5 12. Bc3 Ne4 13. Bxe5 Nxd2 14. Bxg7 Rg8 15. Rxd2 Rxg7 16. g3 Ne5 17. b3 Nf3 18. Rd3 Ne5 19. Rd2 Nf3 20. Rd3 Ne5 21. Rd2 {½-½ (21) Giri,A (2773)-Carlsen,M (2864) Oslo 2022}) 11. O-O-O {[%emt 0:03:22]} Bd7 {[%emt 0:09:36] [#]} 12. Ng3 $2 {[%emt 0:06:17]} ({White has to play} 12. Bd6 $1 $18 {[%cal Rd6e5]} Qh5 13. Ng3) 12... c5 {[%emt 0:05:58]} 13. Bc3 {[%emt 0:00:35]} Qc7 {[%emt 0:09:49]} 14. Qe3 {[%emt 0:28:38]} (14. Bd3 $14) 14... h5 {[%emt 0:11:00]} 15. Nf5 {[%emt 0:17:12]} Rh7 {[%emt 0:05:12]} 16. Nd6+ {[%emt 0:01:35]} Kf8 {[%emt 0:03:49]} 17. Be2 {[%emt 0:04:56]} (17. Bd3 $18) 17... Nh6 {[%emt 0:09:48]} (17... Qb6 $16) 18. Qf4 {[%emt 0:11:13]} Ne8 {[%emt 0:05:05]} 19. Be5 {[%emt 0:05:51]} ({Not} 19. Bxh5 Nf5 20. Bxf7 (20. Be5 Nexd6 21. Bg6 Rh4 $14) 20... Nexd6 $16) 19... Qb6 {[%emt 0:01:36]} 20. Nxf7 {[%emt 0:00:06]} Nxf7 {[%emt 0:00:07]} 21. Rxd7 {[%emt 0:00:15]} g6 {[%emt 0:03:29]} (21... Nf6 $142) 22. Bf3 {[%emt 0:03:59]} Rd8 {[%emt 0:03:17]} 23. Bc7 {[%emt 0:00:51]} Rxd7 {[%emt 0:00:05]} 24. Bxb6 {[%emt 0:00:09]} axb6 {[%emt 0:00:55]} 25. Qe4 {[%emt 0:02:04]} Ng5 {[%emt 0:01:33]} 26. Qxg6 $18 {[%emt 0:00:09]} Nxf3 {[%emt 0:00:03]} 27. gxf3 {[%emt 0:01:10]} Nc7 {[%emt 0:01:41]} 28. Re1 {[%emt 0:00:23]} Rdg7 {[%emt 0:00:09]} 29. Qf6+ {[%emt 0:00:07]} Rf7 {[%emt 0:00:16]} 30. Qd8+ {[%emt 0:00:04]} Kg7 {[%emt 0:00:08]} 31. Rg1+ {[%emt 0:00:13]} Kh6 32. Qg5# {[%emt 0:00:30]} 1-0

[Event "DVM U14 2021"]
[Site "Willingen"]
[Date "2022.08.15"]
[Round "5"]
[White "Bungarten, Jona"]
[Black "Malinowsky, Levi"]
[Result "1-0"]
[ECO "B22"]
[WhiteElo "1834"]
[BlackElo "1814"]
[Annotator "NA RC"]
[PlyCount "73"]
[EventDate "2022.08.12"]
[EventType "team-tourn"]
[EventRounds "7"]
[EventCountry "GER"]
[SourceTitle "playchess.com"]
[Source "ChessBase"]
[SourceQuality "1"]
[TimeControl "40/5400+30:1800+30"]

1. e4 {[%emt 0:00:06]} c5 {[%emt 0:00:00]} 2. d4 {[%emt 0:00:09]} cxd4 {[%emt 0:00:00]} 3. c3 {[%emt 0:00:23]} Nf6 {[%emt 0:00:00]} 4. e5 {[%emt 0:00:13]} Nd5 {[%emt 0:00:05]} 5. Nf3 {[%emt 0:01:08]} Nc6 {[%emt 0:00:12]} 6. Bc4 {[%emt 0:00:55]} Nb6 {[%emt 0:00:12]} 7. Bb3 {[%emt 0:01:35]} d6 {[%emt 0:04:17]} 8. exd6 {[%emt 0:00:40]} Qxd6 {[%emt 0:00:11]} 9. O-O {[%emt 0:03:49]} g6 {[%emt 0:06:08]} 10. Ng5 {[%emt 0:21:09]} Be6 {[%emt 0:07:16]} (10... e6 $11) 11. Na3 {[%emt 0:06:13]} (11. Bxe6 $14 fxe6 12. Qf3) 11... a6 {[%emt 0:04:02]} (11... Bxb3 $1 $11 {remains equal.} 12. Qxb3 e6) 12. Re1 {[%emt 0:05:34]} dxc3 {[%emt 0:01:22]} ({Weaker is} 12... Bd5 13. c4 h6 14. cxd5 hxg5 15. dxc6 Qxh2+ 16. Kf1) (12... Nd8 $142) 13. Bxe6 {[%emt 0:02:47]} fxe6 {[%emt 0:00:24] [#]} 14. Qf3 $1 {[%emt 0:06:58]} ({Much worse is} 14. Nxe6 $6 Qxd1 15. Rxd1 Rc8 $11) ({Much weaker is} 14. Qxd6 $6 exd6 15. bxc3 (15. Nxe6 Kd7 $11) 15... e5 $11) 14... Ne5 {[%emt 0:02:37]} (14... Nd8 $16) 15. Qxc3 {[%emt 0:08:39]} Rd8 $2 {[%emt 0:01:34]} (15... h6 16. Qxe5 (16. Rxe5 hxg5 17. Qe1 Nd7 $17) 16... Qxe5 17. Rxe5 hxg5) 16. Bf4 {[%emt 0:01:46]} Bg7 {[%emt 0:00:21]} 17. Bxe5 {[%emt 0:00:18]} Bxe5 {[%emt 0:00:07]} 18. Qxe5 {[%emt 0:00:28]} Qxe5 {[%emt 0:00:07]} 19. Rxe5 {[%emt 0:00:22]} Rd2 {[%emt 0:00:29]} 20. Rxe6 {[%emt 0:00:29]} O-O {[%emt 0:02:12]} 21. Nf3 {[%emt 0:00:22]} Rxb2 {[%emt 0:00:52]} 22. Rxe7 {[%emt 0:00:42]} Nd5 {[%emt 0:00:48]} 23. Ree1 {[%emt 0:00:44]} Nf4 {[%emt 0:00:49]} 24. Reb1 {[%emt 0:00:55]} Re2 {[%emt 0:00:42]} 25. Nc4 {[%emt 0:00:59]} b5 {[%emt 0:01:10]} 26. Nce5 {[%emt 0:01:30]} Rc2 {[%emt 0:03:31]} 27. Nd4 {[%emt 0:01:26]} Rd2 {[%emt 0:00:17]} 28. Nef3 {[%emt 0:00:50]} Rd3 {[%emt 0:01:04]} 29. Rd1 {[%emt 0:00:43]} Ra3 {[%emt 0:01:59]} 30. g3 {[%emt 0:02:17]} Nd3 {[%emt 0:01:26]} 31. Kg2 {[%emt 0:01:49]} Nc5 {[%emt 0:02:25]} 32. Rac1 {[%emt 0:01:07]} Na4 {[%emt 0:03:32]} 33. Rc7 {[%emt 0:01:33]} Rf7 {[%emt 0:03:06]} 34. Rdc1 {[%emt 0:02:34]} Rxa2 {[%emt 0:00:11]} 35. Ne6 {[%emt 0:00:21]} Rxc7 {[%emt 0:00:08]} 36. Rxc7 $18 {[%emt 0:01:33]} h6 {[%emt 0:00:08]} 37. Ne5 1-0

[Event "DVM U14 2021"]
[Site "Willingen"]
[Date "2022.08.15"]
[Round "5"]
[White "Freude, Max"]
[Black "Fuhrmann, Bahne"]
[Result "1/2-1/2"]
[ECO "C22"]
[WhiteElo "1819"]
[BlackElo "1973"]
[Annotator "TA"]
[PlyCount "60"]
[EventDate "2022.08.12"]
[EventType "team-tourn"]
[EventRounds "7"]
[EventCountry "GER"]
[SourceTitle "playchess.com"]
[Source "ChessBase"]
[SourceQuality "1"]
[TimeControl "40/5400+30:1800+30"]

{[%evp 9,60,-12,24,19,56,28,91,91,86,60,50,66,90,83,89,74,86,92,102,66,77,76,179,82,86,78,91,97,125,121,143,30,20,36,22,19,31,40,29,6,1,0,0,0,0,0,0,0,0,0,0,0,0]} 1. e4 {[%emt 0:00:08]} e5 {[%emt 0:00:00]} 2. d4 {[%emt 0:00:06]} exd4 {[%emt 0:00:00]} 3. Qxd4 {[%emt 0:00:44]} Nc6 {[%emt 0:00:00]} 4. Qe3 {[%emt 0:08:30]} g6 {[%emt 0:08:29]} 5. h4 {[%emt 0:14:59] [#]} Qe7 $146 {[%emt 0:01:46]} ({Predecessor:} 5... h5 6. Nc3 Bg7 7. Bd2 d6 8. O-O-O Be6 9. Nh3 Nge7 10. Ng5 Qd7 11. Kb1 O-O-O 12. Bc1 Rhe8 {1-0 (59) Abdusattorov,N (2627)-Shahade,G (2476) Chess.com INT 2020}) 6. Nc3 {[%emt 0:01:06] Black must now prevent Nd5. C22: Centre Game.} Nb4 {[%emt 0:19:09]} 7. Bd3 {[%emt 0:05:14]} (7. Qe2 $5 {[%cal Ra2a3]}) 7... Qc5 {[%emt 0:09:28]} (7... c6 $11) 8. Nf3 $16 {[%emt 0:06:29] White is better.} Nf6 {[%emt 0:08:00]} 9. O-O {[%emt 0:03:08]} Qxe3 $1 {[%emt 0:00:10]} 10. Bxe3 {[%emt 0:02:12]} ({Much worse is} 10. fxe3 c6 $11) 10... Bg7 {[%emt 0:03:46] [#]} 11. Nb5 $1 {[%emt 0:00:17][%csl LRa7,LRc7]} Na6 {[%emt 0:11:59]} 12. Rfe1 {[%emt 0:01:30] 0x0.001e3d193e8adp-1022s more active pieces. The black rooks are badly placed.} O-O {[%emt 0:02:10]} 13. Nxa7 {[%emt 0:15:52]} Nb4 {[%emt 0:06:27]} 14. Nxc8 {[%emt 0:01:38]} Raxc8 {[%emt 0:01:03]} 15. a3 {[%emt 0:02:23]} d5 {[%emt 0:07:31]} 16. e5 {[%emt 0:00:16]} (16. axb4 $18 {is the precise move to win.} dxe4 17. Be2) 16... Nxd3 {[%emt 0:00:20]} 17. cxd3 {[%emt 0:02:31]} Nd7 {[%emt 0:00:52][%cal Bf6d7,Bd7c5,Bc5d3][%mdl 32]} 18. d4 {[%emt 0:04:56]} c5 {[%emt 0:05:00]} 19. dxc5 {[%emt 0:07:34]} Nxc5 {[%emt 0:05:28]} 20. Rac1 {[%emt 0:01:15]} (20. Rad1 $16) 20... Nd3 $11 {[%emt 0:00:07][%csl LRb2,LRc1,LRe1,LRe5]} 21. Rxc8 {[%emt 0:00:04]} Rxc8 {[%emt 0:00:08]} 22. Rd1 {[%emt 0:01:33]} Nxe5 {[%emt 0:00:05]} 23. Nxe5 {[%emt 0:00:03]} Bxe5 {[%emt 0:00:07]} 24. Rxd5 {[%emt 0:00:38]} Bxb2 {[%emt 0:00:04][%mdl 4096] Endgame KRB-KRB. The position is equal.} 25. Rb5 {[%emt 0:00:18]} Bxa3 {[%emt 0:00:06]} 26. Rxb7 {[%emt 0:00:47]} Bd6 {[%emt 0:00:29]} 27. g3 {[%emt 0:00:51]} Be5 {[%emt 0:00:44]} 28. Kg2 {[%emt 0:00:23]} Kg7 {[%emt 0:00:32]} 29. Rd7 {[%emt 0:00:40]} Rc2 {[%emt 0:00:43]} 30. Bd4 {[%emt 0:00:31]} Bxd4 {Weighted Error Value: White=0.21 (precise) /Black=0.17 (very precise)} 1/2-1/2

[Event "DVM U14 2021"]
[Site "Willingen"]
[Date "2022.08.15"]
[Round "5"]
[White "Prinzen, Siri Marleen"]
[Black "Le, Dinh An"]
[Result "1/2-1/2"]
[ECO "D02"]
[WhiteElo "1801"]
[BlackElo "1470"]
[Annotator "NA RC"]
[PlyCount "134"]
[EventDate "2022.08.12"]
[EventType "team-tourn"]
[EventRounds "7"]
[EventCountry "GER"]
[SourceTitle "playchess.com"]
[Source "ChessBase"]
[SourceQuality "1"]
[TimeControl "40/5400+30:1800+30"]

1. d4 {[%emt 0:00:01]} Nf6 {[%emt 0:00:09]} 2. Bf4 {[%emt 0:00:05]} d5 {[%emt 0:00:08]} 3. e3 {[%emt 0:00:04]} c5 {[%emt 0:00:16]} 4. c3 {[%emt 0:00:53]} e6 {[%emt 0:00:31]} 5. Nd2 {[%emt 0:00:09]} Nc6 {[%emt 0:00:44]} 6. Ngf3 {[%emt 0:00:24]} Nh5 {[%emt 0:00:27]} 7. Bg3 {[%emt 0:05:37]} cxd4 {[%emt 0:00:47]} 8. exd4 {[%emt 0:00:27]} f6 {[%emt 0:00:58]} 9. Nh4 {[%emt 0:04:39]} g6 {[%emt 0:00:59]} 10. Bd3 {[%emt 0:01:19]} Ng7 {[%emt 0:06:38]} 11. Nhf3 {[%emt 0:03:44]} Bd6 {[%emt 0:01:13]} 12. Qe2 {[%emt 0:01:19]} O-O {[%emt 0:01:25]} 13. O-O {[%emt 0:05:49]} Re8 {[%emt 0:01:06]} 14. Bb5 {[%emt 0:04:27]} Nh5 {[%emt 0:02:37]} 15. Bxd6 {[%emt 0:05:46]} Qxd6 {[%emt 0:00:13]} 16. g3 {[%emt 0:01:52]} e5 {[%emt 0:04:14]} 17. dxe5 {[%emt 0:04:12]} fxe5 {[%emt 0:00:31]} 18. Nh4 {[%emt 0:02:29]} ({Better is} 18. c4 $1 $11 Bg4 19. Qd3) 18... e4 {[%emt 0:04:07]} 19. Rad1 {[%emt 0:03:55]} Nf6 {[%emt 0:02:15]} 20. Nc4 {[%emt 0:06:48]} Qc5 {[%emt 0:01:46]} 21. Ne3 {[%emt 0:00:39]} Re7 {[%emt 0:06:33]} 22. Bxc6 {[%emt 0:04:37]} bxc6 {[%emt 0:00:30]} 23. Qd2 {[%emt 0:01:46]} Ba6 {[%emt 0:08:55]} 24. Rfe1 {[%emt 0:01:15]} Rf8 {[%emt 0:03:05]} 25. Qd4 {[%emt 0:02:16]} Qd6 {[%emt 0:10:32]} 26. Nhg2 {[%emt 0:05:02]} Nh5 {[%emt 0:01:46]} 27. c4 {[%emt 0:02:29]} Ref7 {[%emt 0:03:38]} 28. Ng4 {[%emt 0:01:30]} g5 {[%emt 0:03:33]} 29. cxd5 {[%emt 0:09:02]} cxd5 {[%emt 0:01:06]} 30. Qxd5 {[%emt 0:00:55]} Qxd5 {[%emt 0:05:10]} 31. Rxd5 {[%emt 0:00:15]} Re7 {[%emt 0:00:44]} 32. Rxg5+ {[%emt 0:00:24]} Ng7 {[%emt 0:00:12]} 33. Nf4 {[%emt 0:02:16]} Kh8 {[%emt 0:00:52]} 34. Re5 {[%emt 0:01:37]} Rxe5 {[%emt 0:04:44]} 35. Nxe5 {[%emt 0:00:25]} Bb7 {[%emt 0:00:21]} 36. Nfg6+ {[%emt 0:03:40]} hxg6 {[%emt 0:00:15]} 37. Nxg6+ {[%emt 0:00:01]} Kg8 {[%emt 0:00:11]} 38. Nxf8 {[%emt 0:00:04]} Kxf8 {[%emt 0:00:11]} 39. Rc1 {[%emt 0:00:28]} Ne6 {[%emt 0:00:39]} 40. Rc4 {[%emt 0:01:44]} Kf7 $18 {[%emt 0:05:23]} 41. Ra4 {[%emt 0:31:06]} a6 {[%emt 0:30:28]} 42. Kf1 {[%emt 0:01:17]} Nc5 {[%emt 0:00:42]} 43. Rb4 {[%emt 0:00:29]} a5 {[%emt 0:00:26]} 44. Rd4 {[%emt 0:00:50]} Ke6 {[%emt 0:00:19]} 45. Ke2 {[%emt 0:04:47]} Ke5 {[%emt 0:02:32]} 46. Ke3 {[%emt 0:00:49]} Nd3 {[%emt 0:02:14]} 47. Rxd3 {[%emt 0:02:17]} exd3 {[%emt 0:00:06]} 48. Kxd3 {[%emt 0:00:03]} Bf3 {[%emt 0:00:16]} 49. Ke3 {[%emt 0:00:33]} Bh5 {[%emt 0:00:34]} 50. h3 {[%emt 0:00:20]} a4 {[%emt 0:00:30]} 51. g4 {[%emt 0:00:35]} Bg6 {[%emt 0:00:35]} 52. f4+ {[%emt 0:00:18]} Kf6 {[%emt 0:00:18]} 53. a3 {[%emt 0:00:21]} Bh7 {[%emt 0:00:50]} 54. h4 {[%emt 0:00:37]} Bc2 {[%emt 0:02:41]} 55. Kd4 {[%emt 0:01:06]} Bd1 {[%emt 0:00:32]} 56. g5+ {[%emt 0:01:41]} Kg6 {[%emt 0:07:17]} 57. b4 {[%emt 0:04:13]} axb3 {[%emt 0:00:17]} 58. Kc3 {[%emt 0:00:04]} Kf5 {[%emt 0:02:14]} 59. Kb2 {[%emt 0:00:38]} Kxf4 {[%emt 0:02:07]} 60. g6 {[%emt 0:01:03]} Bc2 {[%emt 0:01:32]} 61. g7 {[%emt 0:01:07]} Bh7 {[%emt 0:00:08]} 62. Kxb3 {[%emt 0:00:08]} Kf5 {[%emt 0:00:26]} 63. Kc4 {[%emt 0:02:00]} Kg6 {[%emt 0:00:48]} 64. Kd4 {[%emt 0:00:09]} Kxg7 {[%emt 0:00:08]} 65. Ke5 {[%emt 0:00:18]} Kh6 {[%emt 0:00:52]} 66. Kf4 {[%emt 0:00:09]} Kh5 {[%emt 0:00:06]} 67. Kg3 {[%emt 0:00:12]} Bc2 {[%emt 0:00:06]} 1/2-1/2

[Event "DVM U14 2021"]
[Site "Willingen"]
[Date "2022.08.15"]
[Round "5"]
[White "Braeutigam, Katerina"]
[Black "Tomasjan, Samuel"]
[Result "1-0"]
[ECO "C67"]
[WhiteElo "1781"]
[BlackElo "1741"]
[Annotator "NA RC"]
[PlyCount "49"]
[EventDate "2022.08.12"]
[EventType "team-tourn"]
[EventRounds "7"]
[EventCountry "GER"]
[SourceTitle "playchess.com"]
[Source "ChessBase"]
[SourceQuality "1"]
[TimeControl "40/5400+30:1800+30"]

1. e4 {[%emt 0:00:02]} e5 {[%emt 0:00:04]} 2. Nf3 {[%emt 0:00:04]} Nc6 {[%emt 0:00:05]} 3. Bb5 {[%emt 0:00:03]} Nf6 {[%emt 0:00:04]} 4. O-O {[%emt 0:00:08]} Nxe4 {[%emt 0:00:02]} 5. Re1 {[%emt 0:00:09]} Nd6 {[%emt 0:00:03]} 6. Nxe5 {[%emt 0:00:09]} Be7 {[%emt 0:00:04]} 7. Bf1 {[%emt 0:00:12]} Nxe5 {[%emt 0:00:07]} 8. Rxe5 {[%emt 0:00:08]} O-O {[%emt 0:00:23]} 9. d4 {[%emt 0:00:07]} Bf6 {[%emt 0:00:16]} 10. Re1 {[%emt 0:00:39]} Nf5 {[%emt 0:00:10]} 11. d5 {[%emt 0:04:01]} Re8 {[%emt 0:00:16]} 12. Nc3 {[%emt 0:03:28]} d6 {[%emt 0:03:59]} 13. Bd3 {[%emt 0:10:59]} Bd4 {[%emt 0:06:22]} 14. Bg5 {[%emt 0:21:43]} Rxe1+ {[%emt 0:06:58]} 15. Qxe1 {[%emt 0:00:14]} f6 {[%emt 0:00:22]} 16. Bd2 {[%emt 0:04:22]} Bd7 {[%emt 0:04:06]} 17. Qe4 {[%emt 0:04:22]} g6 {[%emt 0:05:04]} 18. Re1 {[%emt 0:10:37]} Qf8 {[%emt 0:02:50]} 19. Qg4 {[%emt 0:05:18]} Bb6 {[%emt 0:01:38]} 20. Ne4 {[%emt 0:04:50]} Qf7 {[%emt 0:01:58]} 21. Bc3 {[%emt 0:02:01]} Rd8 {[%emt 0:10:19]} 22. Nxf6+ {[%emt 0:06:30]} Kf8 {[%emt 0:00:14]} 23. Qg5 {[%emt 0:01:28]} Bd4 {[%emt 0:15:04]} 24. Nxh7+ {[%emt 0:06:07]} Kg7 {[%emt 0:02:38]} 25. Bxd4+ {[%emt 0:01:32]} 1-0

[Event "DVM U14 2021"]
[Site "Willingen"]
[Date "2022.08.15"]
[Round "5"]
[White "Englert, Luca"]
[Black "Bongardt, Livius"]
[Result "1-0"]
[ECO "C90"]
[WhiteElo "1741"]
[BlackElo "1756"]
[Annotator "NA RC"]
[PlyCount "89"]
[EventDate "2022.08.12"]
[EventType "team-tourn"]
[EventRounds "7"]
[EventCountry "GER"]
[SourceTitle "playchess.com"]
[Source "ChessBase"]
[SourceQuality "1"]
[TimeControl "40/5400+30:1800+30"]

1. e4 {[%emt 0:00:04]} e5 {[%emt 0:00:00]} 2. Nf3 {[%emt 0:00:03]} Nc6 {[%emt 0:00:00]} 3. Bb5 {[%emt 0:00:04]} a6 {[%emt 0:00:00]} 4. Ba4 {[%emt 0:00:06]} Nf6 {[%emt 0:00:00]} 5. O-O {[%emt 0:00:07]} b5 {[%emt 0:00:00]} 6. Bb3 {[%emt 0:00:03]} Be7 {[%emt 0:00:00]} 7. Re1 {[%emt 0:01:24]} O-O {[%emt 0:00:04]} 8. d3 {[%emt 0:00:41]} d6 {[%emt 0:00:30]} 9. c3 {[%emt 0:01:02]} Na5 {[%emt 0:00:06]} 10. Bc2 {[%emt 0:00:07]} c5 {[%emt 0:01:12]} 11. Nbd2 {[%emt 0:00:50]} Qc7 {[%emt 0:00:20]} 12. Nf1 {[%emt 0:05:11]} Re8 {[%emt 0:01:07]} 13. Ng3 {[%emt 0:04:10]} h6 {[%emt 0:01:05]} 14. a4 {[%emt 0:06:04]} Bd7 {[%emt 0:05:15]} 15. h3 {[%emt 0:42:04]} Nc6 {[%emt 0:05:21]} 16. Be3 {[%emt 0:16:11]} d5 {[%emt 0:10:29]} 17. axb5 {[%emt 0:00:28]} axb5 {[%emt 0:00:09]} 18. Rxa8 {[%emt 0:00:19]} Rxa8 {[%emt 0:01:17]} 19. d4 {[%emt 0:07:20]} dxe4 {[%emt 0:07:35]} 20. dxe5 {[%emt 0:04:57]} Nxe5 {[%emt 0:02:35]} 21. Nxe5 {[%emt 0:00:18]} Qxe5 {[%emt 0:00:08]} 22. Nxe4 {[%emt 0:02:22]} Be6 {[%emt 0:01:40]} 23. Nxf6+ {[%emt 0:06:01]} Qxf6 {[%emt 0:00:56]} 24. Qd3 {[%emt 0:01:13]} g6 {[%emt 0:00:33]} 25. Qxb5 {[%emt 0:01:15]} Kh7 {[%emt 0:04:25]} 26. Bb3 {[%emt 0:00:30]} Bxb3 {[%emt 0:00:02]} 27. Qxb3 {[%emt 0:00:31]} Bd6 {[%emt 0:06:40]} 28. Qc4 {[%emt 0:00:32]} Rc8 {[%emt 0:05:09]} 29. b4 {[%emt 0:00:23]} Qf5 {[%emt 0:07:43]} 30. b5 {[%emt 0:00:35]} Kg7 {[%emt 0:03:41]} 31. Qg4 {[%emt 0:00:30]} Qxg4 {[%emt 0:00:00]} 32. hxg4 {[%emt 0:00:30]} c4 {[%emt 0:00:36]} 33. Rb1 {[%emt 0:00:31]} Bc5 {[%emt 0:00:43]} 34. Bxc5 {[%emt 0:00:03]} Rxc5 {[%emt 0:00:05]} 35. b6 {[%emt 0:00:03]} Rc8 {[%emt 0:00:18]} 36. b7 {[%emt 0:00:03]} Rb8 {[%emt 0:00:59]} 37. Rb6 {[%emt 0:00:15]} Kf8 {[%emt 0:00:43]} 38. f3 {[%emt 0:00:13]} Ke7 {[%emt 0:00:04]} 39. Kf2 {[%emt 0:00:25]} Kd7 {[%emt 0:00:15]} 40. Ke3 {[%emt 0:01:00]} Kc7 {[%emt 0:00:42]} 41. Rb2 {[%emt 0:02:32]} Re8+ {[%emt 0:00:08]} 42. Kd4 {[%emt 0:02:40]} Kb8 {[%emt 0:00:08]} 43. Kxc4 {[%emt 0:00:19]} Re5 {[%emt 0:00:18]} 44. Kd4 {[%emt 0:01:30]} Re8 {[%emt 0:00:24]} 45. c4 {[%emt 0:01:29]} 1-0

[Event "DVM U14 2021"]
[Site "Willingen"]
[Date "2022.08.15"]
[Round "5"]
[White "Fettig, Konrad"]
[Black "Marcziter, Alex"]
[Result "1/2-1/2"]
[ECO "C55"]
[WhiteElo "1677"]
[BlackElo "1466"]
[Annotator "NA RC"]
[PlyCount "74"]
[EventDate "2022.08.12"]
[EventType "team-tourn"]
[EventRounds "7"]
[EventCountry "GER"]
[SourceTitle "playchess.com"]
[Source "ChessBase"]
[SourceQuality "1"]
[TimeControl "40/5400+30:1800+30"]

1. e4 {[%emt 0:00:25]} e5 {[%emt 0:00:00]} 2. Nf3 {[%emt 0:00:22]} Nc6 {[%emt 0:00:00]} 3. Bc4 {[%emt 0:00:46]} Nf6 {[%emt 0:00:07]} 4. d3 {[%emt 0:02:43]} Be7 {[%emt 0:01:06]} 5. Be3 {[%emt 0:01:48]} O-O {[%emt 0:00:41]} 6. O-O {[%emt 0:02:56]} d6 {[%emt 0:01:51]} 7. h3 {[%emt 0:03:36]} h6 {[%emt 0:02:04]} 8. Nc3 {[%emt 0:02:34]} Be6 {[%emt 0:01:59]} 9. Bb3 {[%emt 0:07:23]} d5 {[%emt 0:01:31]} 10. Nxd5 {[%emt 0:00:17]} Nxd5 {[%emt 0:00:10]} 11. exd5 {[%emt 0:00:23]} Bxd5 {[%emt 0:01:01]} 12. Bxd5 {[%emt 0:00:15]} Qxd5 {[%emt 0:05:29]} 13. Nd2 {[%emt 0:01:53]} f5 {[%emt 0:02:30]} 14. f3 {[%emt 0:04:20]} Rad8 {[%emt 0:02:34]} 15. Nb3 {[%emt 0:02:39]} Rf6 {[%emt 0:02:45]} 16. Qe2 {[%emt 0:06:25]} Rg6 {[%emt 0:05:09]} 17. Rae1 {[%emt 0:03:00]} Qe6 {[%emt 0:07:42]} 18. f4 {[%emt 0:05:56]} Bd6 {[%emt 0:07:30]} 19. fxe5 {[%emt 0:02:14]} Qxe5 {[%emt 0:01:39]} 20. Bf4 {[%emt 0:01:46]} Qd5 {[%emt 0:03:13]} 21. Bxd6 {[%emt 0:03:03]} Rdxd6 {[%emt 0:03:19]} 22. Qf3 {[%emt 0:09:17]} Rgf6 {[%emt 0:01:25]} 23. Qxd5+ {[%emt 0:00:18]} Rxd5 {[%emt 0:02:21]} 24. a3 {[%emt 0:02:32]} Kf7 {[%emt 0:01:46]} 25. Rf2 {[%emt 0:01:40]} Re6 {[%emt 0:01:03]} 26. Rxe6 {[%emt 0:00:08]} Kxe6 {[%emt 0:00:18]} 27. Re2+ {[%emt 0:02:13]} Kf7 {[%emt 0:01:35]} 28. Kf2 {[%emt 0:02:27]} g6 {[%emt 0:03:33]} 29. h4 {[%emt 0:01:50]} b6 {[%emt 0:03:12]} 30. Nd2 {[%emt 0:03:13]} Nd4 {[%emt 0:07:55]} 31. c4 {[%emt 0:02:55]} Nxe2 {[%emt 0:00:07]} 32. cxd5 {[%emt 0:00:18]} Nf4 {[%emt 0:00:57]} 33. Nc4 {[%emt 0:01:47]} Nxd3+ {[%emt 0:01:55]} 34. Ke3 {[%emt 0:03:34]} Nc5 {[%emt 0:01:40]} 35. d6 {[%emt 0:04:06]} cxd6 {[%emt 0:00:53]} 36. Nxd6+ {[%emt 0:02:00]} Ke6 {[%emt 0:02:30]} 37. Nc8 Kd5 {[%emt 0:09:58]} 1/2-1/2

[Event "DVM U14 2021"]
[Site "Willingen"]
[Date "2022.08.15"]
[Round "5"]
[White "Vollbehr, Bjarne"]
[Black "Kommessin, Felix"]
[Result "1-0"]
[ECO "E05"]
[WhiteElo "1654"]
[BlackElo "1536"]
[Annotator "NA RC"]
[PlyCount "63"]
[EventDate "2022.08.12"]
[EventType "team-tourn"]
[EventRounds "7"]
[EventCountry "GER"]
[SourceTitle "playchess.com"]
[Source "ChessBase"]
[SourceQuality "1"]
[TimeControl "40/5400+30:1800+30"]

1. d4 {[%emt 0:00:04]} d5 {[%emt 0:00:06]} 2. c4 {[%emt 0:00:13]} e6 {[%emt 0:00:03]} 3. g3 {[%emt 0:00:12]} Nf6 {[%emt 0:00:08]} 4. Bg2 {[%emt 0:00:05]} Be7 {[%emt 0:00:07]} 5. Nf3 {[%emt 0:00:06]} O-O {[%emt 0:00:06]} 6. O-O {[%emt 0:00:13]} dxc4 {[%emt 0:00:06]} 7. Nbd2 {[%emt 0:00:56]} c5 {[%emt 0:09:10]} 8. Nxc4 {[%emt 0:01:38]} Nc6 {[%emt 0:03:47]} 9. dxc5 {[%emt 0:06:48]} Bxc5 {[%emt 0:01:48]} 10. a3 {[%emt 0:01:31]} b5 {[%emt 0:10:38]} 11. Nfe5 {[%emt 0:03:35]} Nxe5 {[%emt 0:05:53]} 12. Nxe5 {[%emt 0:00:12]} Nd5 {[%emt 0:00:05]} 13. b4 {[%emt 0:04:05]} Bb6 {[%emt 0:07:36]} 14. Bb2 {[%emt 0:05:12]} Bb7 {[%emt 0:12:51]} 15. Rc1 {[%emt 0:05:32]} Rc8 {[%emt 0:06:23]} 16. Qd3 {[%emt 0:05:26]} a6 {[%emt 0:05:45]} 17. Rxc8 {[%emt 0:11:34]} Qxc8 {[%emt 0:02:59]} 18. Rc1 {[%emt 0:00:15]} Qe8 {[%emt 0:08:27]} 19. Bd4 {[%emt 0:03:10]} Qd8 {[%emt 0:10:13]} 20. Bxb6 {[%emt 0:02:17]} Qxb6 {[%emt 0:03:54]} 21. Nd7 {[%emt 0:00:59]} Qd8 {[%emt 0:01:02]} 22. Nxf8 {[%emt 0:00:21]} Qxf8 {[%emt 0:00:04]} 23. Qd4 {[%emt 0:01:11]} Qb8 {[%emt 0:01:03]} 24. Bxd5 {[%emt 0:02:21]} Bxd5 {[%emt 0:00:12]} 25. e4 {[%emt 0:00:20]} Bc4 {[%emt 0:00:36]} 26. Rd1 {[%emt 0:00:13]} Kf8 {[%emt 0:01:29]} 27. Qd8+ {[%emt 0:00:30]} Qxd8 {[%emt 0:00:08]} 28. Rxd8+ {[%emt 0:00:03]} Ke7 {[%emt 0:00:09]} 29. Ra8 {[%emt 0:00:05]} Bb3 {[%emt 0:00:20]} 30. Rxa6 {[%emt 0:00:26]} Ba4 {[%emt 0:00:09]} 31. Kf1 {[%emt 0:00:53]} Kf6 {[%emt 0:00:25]} 32. Rxa4 {[%emt 0:00:46]} 1-0